[Event "2nd Hersonissos Open 2018"]
[Site "Hersonissos"]
[Date "2018.06.17"]
[Round "1"]
[White "Vitsaxaki, Iris"]
[Black "L'ami, Alina"]
[Result "0-1"]
[ECO "A49"]
[WhiteElo "1443"]
[BlackElo "2307"]
[Annotator "NA"]
[PlyCount "60"]
[EventDate "2018.06.16"]
[EventType "swiss"]
[EventCountry "GRE"]
[SourceTitle "playchess.com"]
[Source "ChessBase"]
[SourceQuality "1"]
[TimeControl "5400+30"]

1. d4 {[%emt 0:00:00]} Nf6 {[%emt 0:00:16]} 2. Nf3 {[%emt 0:00:00]} g6 {[%emt 0:00:08]} 3. g3 {[%emt 0:00:27]} Bg7 {[%emt 0:00:21]} 4. Bg2 {[%emt 0:00:24]} O-O {[%emt 0:00:13]} 5. O-O {[%emt 0:01:38]} d6 {[%emt 0:00:35]} 6. Nbd2 {[%emt 0:02:06]} Nc6 {[%emt 0:05:22]} 7. c3 {[%emt 0:04:02]} Re8 {[%emt 0:08:11]} 8. Nc4 {[%emt 0:05:50]} Be6 {[%emt 0:02:33]} 9. Ne3 {[%emt 0:01:00]} Bd7 {[%emt 0:03:33]} 10. Nc2 {[%emt 0:04:11]} e5 {[%emt 0:07:25]} 11. dxe5 {[%emt 0:03:26]} dxe5 {[%emt 0:00:35]} 12. Re1 {[%emt 0:01:06]} e4 {[%emt 0:11:05]} 13. Nfd4 {[%emt 0:00:54]} Nxd4 {[%emt 0:02:14]} 14. Nxd4 {[%emt 0:00:41]} c5 {[%emt 0:00:20]} 15. Nc2 {[%emt 0:00:44]} b6 {[%emt 0:07:13]} 16. Bg5 {[%emt 0:04:05]} h6 {[%emt 0:05:33]} 17. Be3 {[%emt 0:01:03]} Qe7 {[%emt 0:06:22]} 18. f3 {[%emt 0:02:24]} (18. a4 $15) 18... Rad8 $17 {[%emt 0:00:38]} 19. Qc1 {[%emt 0:01:37]} Kh7 {[%emt 0:00:17]} 20. Bf2 {[%emt 0:00:54]} Bc6 {[%emt 0:01:57]} 21. Ne3 {[%emt 0:01:39]} exf3 {[%emt 0:01:26]} 22. exf3 {[%emt 0:00:38]} Qb7 {[%emt 0:00:09]} 23. Nc4 {[%emt 0:07:01]} Rxe1+ {[%emt 0:03:54]} 24. Qxe1 {[%emt 0:00:42]} Bxf3 {[%emt 0:00:12]} 25. Bxf3 {[%emt 0:00:32]} Qxf3 {[%emt 0:00:02]} 26. Qe7 {[%emt 0:09:10]} Ng4 {[%emt 0:11:35]} 27. Be1 {[%emt 0:06:19]} Rd1 {[%emt 0:02:15]} 28. Rxd1 {[%emt 0:00:14]} Qxd1 {[%emt 0:00:02]} 29. Kg2 {[%emt 0:01:06]} Qd5+ {[%emt 0:00:11]} 30. Kh3 {[%emt 0:01:30]} Qxc4 {[%emt 0:00:27]} 0-1

[Event "2nd Hersonissos Open 2018"]
[Site "Hersonissos"]
[Date "2018.06.17"]
[Round "1"]
[White "Koutsouraki, Ariadni"]
[Black "Ranaldi, Lucas"]
[Result "0-1"]
[ECO "B92"]
[WhiteElo "1373"]
[BlackElo "2283"]
[Annotator "NA"]
[PlyCount "68"]
[EventDate "2018.06.16"]
[EventType "swiss"]
[EventCountry "GRE"]
[SourceTitle "playchess.com"]
[Source "ChessBase"]
[SourceQuality "1"]
[TimeControl "5400+30"]

1. e4 {[%emt 0:00:00]} c5 {[%emt 0:02:06]} 2. Nf3 {[%emt 0:00:32]} d6 {[%emt 0:00:35]} 3. d4 {[%emt 0:02:21]} cxd4 {[%emt 0:00:08]} 4. Nxd4 {[%emt 0:00:12]} Nf6 {[%emt 0:00:11]} 5. Nc3 {[%emt 0:01:46]} a6 {[%emt 0:00:09]} 6. Be2 {[%emt 0:09:33]} e5 {[%emt 0:00:17]} 7. Nb3 {[%emt 0:00:16]} Be7 {[%emt 0:00:12]} 8. O-O {[%emt 0:02:48]} O-O {[%emt 0:01:49]} 9. Be3 {[%emt 0:01:42]} Nbd7 {[%emt 0:01:30]} 10. Qd2 {[%emt 0:07:30] B92: Sicilian Najdorf: 6 Be2} (10. a4 b6 11. Bc4 Bb7 12. Nd2 Qc7 13. Qe2 Nc5 14. Rfd1 Rfd8 15. Bxc5 Qxc5 16. Nf1 b5 17. Bb3 bxa4 18. Rxa4 Bc6 19. Rc4 {1-0 (29) Fedoseev,V (2664)-Bocharov,D (2595) Moscow 2016}) 10... b5 {[%emt 0:00:52]} 11. a3 {[%emt 0:01:49]} Bb7 {[%emt 0:07:07]} 12. f3 {[%emt 0:04:01]} Rc8 {[%emt 0:01:32]} 13. Rad1 {[%emt 0:05:04]} Nb6 {[%emt 0:02:59]} 14. Qc1 $146 {[%emt 0:03:04]} ({Predecessor:} 14. Qe1 d5 15. exd5 Nbxd5 16. Nxd5 Nxd5 17. Bd3 f5 {0-1 (25) Salman,S (2010)-Nasanjargal,U (2304) Zaozhuang 2012}) 14... Qc7 {[%emt 0:05:33]} 15. Bf2 {[%emt 0:04:43]} d5 {[%emt 0:01:44]} 16. exd5 {[%emt 0:01:23]} Nbxd5 {[%emt 0:01:13]} 17. Nxd5 {[%emt 0:02:09]} Nxd5 {[%emt 0:02:32]} 18. Bd3 {[%emt 0:05:58]} Nf4 {[%emt 0:00:36]} 19. Qd2 {[%emt 0:04:46]} Rfd8 {[%emt 0:05:05]} 20. Rfe1 {[%emt 0:04:24]} Bd5 $17 {[%emt 0:03:49]} 21. Nc1 {[%emt 0:01:55]} Bf6 {[%emt 0:02:53]} 22. Qe3 {[%emt 0:05:27]} Nxd3 {[%emt 0:03:16]} 23. cxd3 {[%emt 0:00:30]} Be6 {[%emt 0:04:47]} 24. Ne2 {[%emt 0:05:04]} Qc2 {[%emt 0:07:29]} 25. Qd2 {[%emt 0:03:27]} Qxd2 {[%emt 0:06:52]} 26. Rxd2 {[%emt 0:00:07]} Bg5 {[%emt 0:00:17]} 27. Rdd1 {[%emt 0:00:09]} Bb3 {[%emt 0:00:37]} 28. Ra1 {[%emt 0:00:34]} Bd2 {[%emt 0:01:42]} 29. Rf1 {[%emt 0:00:25]} Rc2 {[%emt 0:01:53]} 30. Ng3 {[%emt 0:01:54]} Rxb2 {[%emt 0:01:04]} 31. Ne4 {[%emt 0:00:29]} Rxd3 {[%emt 0:02:51]} 32. Nxd2 {[%emt 0:00:18]} Rdxd2 {[%emt 0:00:20]} 33. Rac1 {[%emt 0:00:59]} h6 {[%emt 0:01:13]} 34. Rce1 {[%emt 0:01:43]} Bc4 {[%emt 0:00:18]} 0-1

[Event "2nd Hersonissos Open 2018"]
[Site "Hersonissos"]
[Date "2018.06.17"]
[Round "1"]
[White "Kealar, Konstantinos"]
[Black "Lirindzakis, Timotheos"]
[Result "0-1"]
[ECO "A45"]
[WhiteElo "1323"]
[BlackElo "2163"]
[Annotator "NA"]
[PlyCount "60"]
[EventDate "2018.06.16"]
[EventType "swiss"]
[EventCountry "GRE"]
[SourceTitle "playchess.com"]
[Source "ChessBase"]
[SourceQuality "1"]
[TimeControl "5400+30"]

1. d4 {[%emt 0:00:00]} Nf6 {[%emt 0:00:21]} 2. Bg5 {[%emt 0:00:23]} Ne4 {[%emt 0:01:39]} 3. Bf4 {[%emt 0:01:02]} d5 {[%emt 0:02:32]} 4. e3 {[%emt 0:00:36]} c5 {[%emt 0:02:38]} 5. Nf3 {[%emt 0:01:48]} Nc6 {[%emt 0:00:27]} 6. c4 {[%emt 0:03:09]} cxd4 {[%emt 0:02:50]} 7. Nxd4 {[%emt 0:01:53]} e6 {[%emt 0:13:38]} 8. a3 {[%emt 0:01:28]} Qa5+ {[%emt 0:03:23]} 9. Nd2 {[%emt 0:02:24]} Nxd2 {[%emt 0:03:14]} 10. b4 {[%emt 0:00:21] [#]} Nxb4 $1 {[%emt 0:08:01]} 11. axb4 {[%emt 0:02:04]} Bxb4 {[%emt 0:00:09]} 12. Rxa5 {[%emt 0:00:45]} Ne4+ {[%emt 0:00:25]} 13. Ke2 {[%emt 0:03:14]} Nc3+ {[%emt 0:00:10]} 14. Kd3 {[%emt 0:01:34]} Nxd1 {[%emt 0:00:04]} 15. Rb5 {[%emt 0:00:42]} a5 {[%emt 0:01:51]} 16. cxd5 $19 {[%emt 0:00:32]} (16. Bg3) 16... Nxf2+ {[%emt 0:01:21]} 17. Ke2 {[%emt 0:00:26]} Nxh1 {[%emt 0:00:10]} 18. d6 {[%emt 0:01:30]} f6 {[%emt 0:03:03]} 19. Nc2 {[%emt 0:03:35]} e5 {[%emt 0:00:59]} 20. Nxb4 {[%emt 0:00:06]} axb4 {[%emt 0:00:11]} 21. Rxb4 {[%emt 0:03:28]} exf4 {[%emt 0:00:34]} 22. Rxf4 {[%emt 0:00:08]} Ra2+ {[%emt 0:02:11]} 23. Ke1 {[%emt 0:00:55]} Be6 {[%emt 0:02:57]} 24. Bb5+ {[%emt 0:00:22]} Kf7 {[%emt 0:00:21]} 25. d7 {[%emt 0:02:12]} Rxg2 {[%emt 0:03:11]} 26. Rd4 {[%emt 0:00:19]} Ke7 {[%emt 0:00:37]} 27. Kf1 {[%emt 0:01:10]} Rb2 {[%emt 0:01:50]} 28. Ba4 {[%emt 0:01:11]} b5 {[%emt 0:01:06]} 29. Bd1 {[%emt 0:00:07]} Nf2 {[%emt 0:01:18]} 30. Bf3 {[%emt 0:00:30]} Bxd7 {[%emt 0:01:25]} 0-1

[Event "2nd Hersonissos Open 2018"]
[Site "Hersonissos"]
[Date "2018.06.17"]
[Round "1"]
[White "Alexandrakis, Georgios"]
[Black "Lobersli, Henrik Oie"]
[Result "0-1"]
[ECO "A43"]
[WhiteElo "1299"]
[BlackElo "2134"]
[Annotator "NA"]
[PlyCount "66"]
[EventDate "2018.06.16"]
[EventType "swiss"]
[EventCountry "GRE"]
[SourceTitle "playchess.com"]
[Source "ChessBase"]
[SourceQuality "1"]
[TimeControl "5400+30"]

1. d4 {[%emt 0:00:00]} Nf6 {[%emt 0:00:12]} 2. Nf3 {[%emt 0:00:00]} c5 {[%emt 0:00:21]} 3. d5 {[%emt 0:03:48]} b5 {[%emt 0:00:23]} 4. e3 {[%emt 0:12:57]} Qb6 {[%emt 0:02:09]} 5. c4 {[%emt 0:10:18]} bxc4 {[%emt 0:06:15]} 6. a3 {[%emt 0:10:58]} Ba6 {[%emt 0:06:24]} 7. Nc3 {[%emt 0:08:49]} e6 {[%emt 0:02:04]} 8. e4 {[%emt 0:07:36]} Be7 {[%emt 0:03:19]} 9. Be2 {[%emt 0:03:50]} exd5 {[%emt 0:07:20]} 10. exd5 {[%emt 0:03:18]} O-O {[%emt 0:01:02]} 11. O-O {[%emt 0:00:29]} d6 {[%emt 0:00:42]} 12. Re1 {[%emt 0:01:38]} Re8 {[%emt 0:01:10]} 13. Rb1 {[%emt 0:02:59]} Nbd7 {[%emt 0:02:02]} 14. Qa4 {[%emt 0:03:22]} Qb7 {[%emt 0:02:31]} 15. Bxc4 {[%emt 0:05:32]} Bxc4 {[%emt 0:00:39]} 16. Qxc4 {[%emt 0:00:03]} Nb6 {[%emt 0:00:43]} 17. Qb3 {[%emt 0:01:16]} Nfxd5 {[%emt 0:01:58]} 18. Nxd5 {[%emt 0:02:52]} Qxd5 {[%emt 0:00:10]} 19. Qc2 {[%emt 0:03:15]} Bf6 {[%emt 0:03:27]} 20. Be3 {[%emt 0:02:09]} Qc6 {[%emt 0:01:06]} 21. b4 {[%emt 0:03:06]} Rac8 {[%emt 0:05:14]} 22. bxc5 {[%emt 0:02:07]} Nd5 {[%emt 0:03:12]} 23. Bg5 {[%emt 0:02:28]} Rxe1+ {[%emt 0:02:11]} 24. Rxe1 {[%emt 0:00:04]} dxc5 {[%emt 0:00:24]} 25. Qc4 {[%emt 0:01:24]} Nb6 {[%emt 0:04:06]} 26. Qc2 {[%emt 0:01:37]} h6 {[%emt 0:01:08]} 27. Be3 {[%emt 0:01:10]} Nd5 {[%emt 0:03:35]} 28. Bd2 {[%emt 0:01:38]} c4 {[%emt 0:00:45]} 29. Be3 {[%emt 0:02:56]} Nxe3 {[%emt 0:02:11]} 30. Rxe3 {[%emt 0:00:13]} c3 {[%emt 0:00:16]} 31. Re1 {[%emt 0:01:18]} Rb8 {[%emt 0:01:47]} 32. Rc1 {[%emt 0:02:03]} Qc5 {[%emt 0:00:50]} 33. a4 {[%emt 0:00:32]} Rb2 {[%emt 0:00:26]} 0-1

[Event "2nd Hersonissos Open 2018"]
[Site "Hersonissos"]
[Date "2018.06.17"]
[Round "1"]
[White "Tsapaki, Asimenia"]
[Black "Loshkarev, Dmitri"]
[Result "0-1"]
[ECO "C46"]
[WhiteElo "1284"]
[BlackElo "2089"]
[Annotator "NA"]
[PlyCount "60"]
[EventDate "2018.06.16"]
[EventType "swiss"]
[EventCountry "GRE"]
[SourceTitle "playchess.com"]
[Source "ChessBase"]
[SourceQuality "1"]
[TimeControl "5400+30"]

1. e4 {[%emt 0:00:00]} e5 {[%emt 0:00:04]} 2. Nf3 {[%emt 0:00:00]} Nc6 {[%emt 0:00:07]} 3. Nc3 {[%emt 0:00:00]} g6 {[%emt 0:00:09]} 4. d4 {[%emt 0:00:12]} exd4 {[%emt 0:00:07]} 5. Nxd4 {[%emt 0:00:10]} Bg7 {[%emt 0:00:04]} 6. Be3 {[%emt 0:00:16]} Nf6 {[%emt 0:00:09]} 7. Be2 {[%emt 0:00:26]} O-O {[%emt 0:00:07]} 8. Qd2 {[%emt 0:00:22]} Re8 {[%emt 0:00:09]} 9. f3 {[%emt 0:00:45]} d5 {[%emt 0:05:19]} 10. Nxc6 {[%emt 0:01:14]} bxc6 {[%emt 0:00:08]} 11. O-O-O {[%emt 0:00:37]} Qe7 {[%emt 0:02:36]} 12. Bd3 {[%emt 0:02:39]} dxe4 {[%emt 0:10:00]} 13. Nxe4 {[%emt 0:00:48]} Nxe4 {[%emt 0:03:26]} 14. Bxe4 {[%emt 0:00:25]} Rb8 15. Bd4 {[%emt 0:01:27]} Rd8 {[%emt 0:06:44]} 16. Qe3 {[%emt 0:01:09]} Rxd4 {[%emt 0:22:35]} 17. Rxd4 $19 {[%emt 0:00:57]} c5 {[%emt 0:16:15]} 18. Rd2 {[%emt 0:02:30]} Bxb2+ {[%emt 0:00:43]} 19. Kd1 {[%emt 0:00:23]} Bd4 {[%emt 0:00:31]} 20. Rxd4 {[%emt 0:04:47]} Rb1+ {[%emt 0:00:47]} 21. Kd2 {[%emt 0:00:41]} cxd4 {[%emt 0:00:41]} 22. Qxd4 {[%emt 0:01:27]} Rxh1 {[%emt 0:00:13]} 23. Qxa7 {[%emt 0:02:11]} Qd6+ {[%emt 0:00:59]} 24. Kc3 {[%emt 0:00:52]} Rxh2 {[%emt 0:01:30]} 25. Qa4 {[%emt 0:02:56]} Bd7 {[%emt 0:01:10]} 26. Qa8+ {[%emt 0:01:06]} Kg7 {[%emt 0:00:09]} 27. Qa5 {[%emt 0:00:58]} Rh5 {[%emt 0:00:57]} 28. Qa7 {[%emt 0:01:08]} Rc5+ {[%emt 0:02:03]} 29. Kb2 {[%emt 0:00:30]} Qd4+ {[%emt 0:00:08]} 30. Kc1 {[%emt 0:00:16]} Rxc2+ 0-1

[Event "2nd Hersonissos Open 2018"]
[Site "Hersonissos"]
[Date "2018.06.17"]
[Round "1"]
[White "Koutsourakis, Emmanouil"]
[Black "Angermuende, Dirk"]
[Result "0-1"]
[ECO "E24"]
[WhiteElo "1175"]
[BlackElo "1966"]
[Annotator "NA"]
[PlyCount "100"]
[EventDate "2018.06.16"]
[EventType "swiss"]
[EventCountry "GRE"]
[SourceTitle "playchess.com"]
[Source "ChessBase"]
[SourceQuality "1"]
[TimeControl "5400+30"]

1. d4 {[%emt 0:00:00]} Nf6 {[%emt 0:00:13]} 2. c4 {[%emt 0:00:00]} e6 {[%emt 0:00:06]} 3. Nc3 {[%emt 0:00:00]} Bb4 {[%emt 0:00:08]} 4. a3 {[%emt 0:04:38]} Bxc3+ {[%emt 0:00:07]} 5. bxc3 {[%emt 0:00:09]} c5 {[%emt 0:00:03]} 6. Bg5 {[%emt 0:01:27]} Qa5 {[%emt 0:00:44]} 7. Bd2 {[%emt 0:04:46]} Ne4 {[%emt 0:04:41]} 8. Qc2 {[%emt 0:01:28]} Nxd2 {[%emt 0:00:21]} 9. Qxd2 {[%emt 0:00:42]} Nc6 {[%emt 0:02:10]} 10. e3 {[%emt 0:01:02]} O-O {[%emt 0:01:03]} 11. Bd3 {[%emt 0:01:01]} d6 {[%emt 0:00:28]} 12. Ne2 {[%emt 0:01:19]} Qc7 {[%emt 0:00:23]} 13. O-O {[%emt 0:04:03]} b6 {[%emt 0:00:12]} 14. Qc2 {[%emt 0:08:09]} f5 {[%emt 0:00:51]} 15. e4 {[%emt 0:08:19]} g6 {[%emt 0:02:43]} 16. f3 {[%emt 0:05:31]} Qg7 {[%emt 0:01:13]} 17. Qd2 {[%emt 0:01:31]} cxd4 {[%emt 0:04:52]} 18. exf5 {[%emt 0:03:57]} exf5 {[%emt 0:00:26]} 19. cxd4 {[%emt 0:15:33]} Nxd4 {[%emt 0:00:45]} 20. Qf4 {[%emt 0:01:05]} Nxe2+ {[%emt 0:00:34]} 21. Bxe2 {[%emt 0:00:15]} Qe5 {[%emt 0:00:31]} 22. Qd2 {[%emt 0:04:20]} Ba6 {[%emt 0:00:35]} 23. Rfe1 {[%emt 0:01:20]} Qc5+ {[%emt 0:01:15]} 24. Kf1 {[%emt 0:01:32]} Rfe8 {[%emt 0:01:24]} 25. Qd5+ {[%emt 0:00:33]} Qxd5 {[%emt 0:01:17]} 26. cxd5 {[%emt 0:00:12]} Rxe2 {[%emt 0:00:21]} 27. Rxe2 {[%emt 0:00:36]} Rc8 {[%emt 0:00:57]} 28. Kf2 {[%emt 0:03:52]} Bxe2 {[%emt 0:00:08]} 29. Kxe2 {[%emt 0:00:16]} Kf7 {[%emt 0:01:19]} 30. Kd3 {[%emt 0:02:59]} Ke7 {[%emt 0:00:16]} 31. g4 {[%emt 0:04:49]} fxg4 {[%emt 0:00:48]} 32. fxg4 {[%emt 0:00:07]} Rf8 {[%emt 0:00:15]} 33. Re1+ {[%emt 0:04:15]} Kd7 {[%emt 0:00:14]} 34. Re3 {[%emt 0:02:03]} Rf4 {[%emt 0:01:59]} 35. Rh3 {[%emt 0:04:45]} Rf7 {[%emt 0:00:50]} 36. Re3 {[%emt 0:00:39]} Kc7 {[%emt 0:02:15]} 37. Kc3 {[%emt 0:03:43]} b5 {[%emt 0:00:36]} 38. h3 {[%emt 0:02:03]} Kb6 {[%emt 0:01:27]} 39. Kd4 {[%emt 0:04:35]} Rf4+ {[%emt 0:00:20]} 40. Kc3 {[%emt 0:00:00]} a5 {[%emt 0:00:00]} 41. Rd3 {[%emt 0:00:00]} Kc5 {[%emt 0:00:00]} 42. Kb3 {[%emt 0:00:00]} Rd4 {[%emt 0:00:00]} 43. Rc3+ {[%emt 0:00:00]} Kxd5 {[%emt 0:00:00]} 44. Rc7 {[%emt 0:00:00]} Rd3+ {[%emt 0:00:00]} 45. Kb2 {[%emt 0:00:00]} Rxh3 {[%emt 0:00:00]} 46. Ra7 {[%emt 0:00:00]} a4 {[%emt 0:00:00]} 47. Rf7 {[%emt 0:00:00]} h5 {[%emt 0:00:00]} 48. gxh5 {[%emt 0:00:00]} gxh5 {[%emt 0:00:00]} 49. Rf5+ {[%emt 0:00:00]} Kc4 {[%emt 0:00:00]} 50. Rf4+ {[%emt 0:00:00]} Kc5 {[%emt 0:00:00]} 0-1

[Event "2nd Hersonissos Open 2018"]
[Site "Hersonissos"]
[Date "2018.06.17"]
[Round "1"]
[White "Vlatas, Dimitrios"]
[Black "Stefanov, Evtim"]
[Result "0-1"]
[ECO "A00"]
[WhiteElo "1146"]
[BlackElo "1959"]
[Annotator "NA"]
[PlyCount "32"]
[EventDate "2018.06.16"]
[EventType "swiss"]
[EventCountry "GRE"]
[SourceTitle "playchess.com"]
[Source "ChessBase"]
[SourceQuality "1"]
[TimeControl "5400+30"]

1. g3 {[%emt 0:00:00]} d5 {[%emt 0:07:26]} 2. Bg2 {[%emt 0:00:00]} e5 {[%emt 0:01:59]} 3. d3 {[%emt 0:00:35]} f5 {[%emt 0:00:38]} 4. Nd2 {[%emt 0:01:04]} Nf6 {[%emt 0:00:31]} 5. e4 {[%emt 0:04:50]} Bc5 {[%emt 0:01:48]} 6. exd5 {[%emt 0:08:36]} Nxd5 {[%emt 0:01:56]} 7. Ngf3 {[%emt 0:00:35]} O-O {[%emt 0:01:24]} 8. O-O {[%emt 0:00:07]} Nc6 {[%emt 0:04:36]} 9. Re1 {[%emt 0:05:14]} Nf6 {[%emt 0:02:53]} 10. b3 {[%emt 0:07:55]} Ng4 {[%emt 0:02:15]} 11. Rf1 {[%emt 0:00:34]} Be6 {[%emt 0:04:20]} 12. h3 {[%emt 0:00:23]} Nf6 {[%emt 0:01:08]} 13. Nxe5 {[%emt 0:06:05]} Nxe5 {[%emt 0:01:18]} 14. Re1 {[%emt 0:02:20]} Bxf2+ {[%emt 0:04:01]} 15. Kxf2 {[%emt 0:00:52]} Qd4+ {[%emt 0:00:08]} 16. Kf1 {[%emt 0:00:09]} Qxa1 {[%emt 0:00:42]} 0-1

[Event "2nd Hersonissos Open 2018"]
[Site "Hersonissos"]
[Date "2018.06.18"]
[Round "2"]
[White "Loshkarev, Dmitri"]
[Black "Aggeletos, Marios"]
[Result "1-0"]
[ECO "B23"]
[WhiteElo "2089"]
[BlackElo "1769"]
[Annotator "NA RC"]
[PlyCount "55"]
[EventDate "2018.06.16"]
[EventType "swiss"]
[EventCountry "GRE"]
[SourceTitle "playchess.com"]
[Source "ChessBase"]
[SourceQuality "1"]
[TimeControl "5400+30"]

{[%evp 8,29,16,-8,32767,-6,13,-11,16,26,195,191,205,198,197,27,45,25,59,0,358,204,337,135]} 1. e4 {[%emt 0:00:18]} c5 {[%emt 0:00:10]} 2. Nc3 {[%emt 0:00:19]} d6 {[%emt 0:00:47]} 3. f4 {[%emt 0:00:59]} Nc6 {[%emt 0:01:29]} 4. Nf3 {[%emt 0:00:41]} g6 {[%emt 0:01:10]} 5. Bc4 {[%emt 0:02:17] LiveBook: 336 Games} e6 {[%emt 0:00:23]} 6. O-O {[%emt 0:02:42]} Nge7 {[%emt 0:00:32]} 7. f5 {[%emt 0:08:02]} gxf5 {[%emt 0:08:51]} (7... exf5 $15 8. exf5 Bxf5) 8. Ng5 {[%emt 0:05:40]} Ne5 $2 {[%emt 0:16:20]} (8... Ng6 $1 $11 {and Black has nothing to worry.} 9. Nxf7 Kxf7) 9. Qh5 $1 {[%emt 0:04:48]} N7g6 {[%emt 0:08:37]} 10. exf5 {[%emt 0:14:05]} exf5 {[%emt 0:15:22] [#]} 11. d3 $2 {[%emt 0:18:27]} (11. Re1 $1 $18 Bg7 12. d4 cxd4 13. Nxf7) 11... Nxc4 {[%emt 0:11:45]} 12. dxc4 {[%emt 0:00:38]} Be6 {[%emt 0:00:06]} 13. Re1 {[%emt 0:04:33]} ({White should try} 13. Nd5 $16 Bxd5 14. cxd5) 13... Kd7 $2 {[%emt 0:07:54] [#]} ({Better is} 13... Qd7 $1 $14) 14. Qf3 {[%emt 0:12:16]} (14. Nxf7 $142 $1 {[%mdl 512]} Qf6 (14... Bxf7 15. Qxf5+) 15. Nxh8 Qxh8 16. Bd2) 14... Bg7 $2 {[%emt 0:17:32]} (14... Be7 $16 {was necessary.}) 15. Nxf7 $16 {[%emt 0:03:40]} ({Less strong is} 15. Qxb7+ Qc7 $16) (15. Rxe6 $18 {and the rest is easy.} fxe6 16. Qxb7+ Qc7 17. Qxc7+ Kxc7 18. Nxe6+ Kc6 19. Nxg7) 15... Bd4+ {[%emt 0:03:36]} 16. Kh1 {[%emt 0:02:12]} Nh4 {[%emt 0:02:37]} 17. Qxb7+ {[%emt 0:01:56]} Qc7 {[%emt 0:00:31]} 18. Qxc7+ {[%emt 0:01:26]} Kxc7 {[%emt 0:00:06]} 19. Nxh8 {[%emt 0:01:39]} Bxc4 {[%emt 0:01:15]} 20. Re7+ Kc6 {[%emt 0:00:55]} 21. Bg5 {[%emt 0:05:08]} Nxg2 {[%emt 0:00:29]} 22. Kxg2 {[%emt 0:00:41]} Rxh8 {[%emt 0:00:03]} 23. Bf4 {[%emt 0:01:48]} Rg8+ {[%emt 0:00:56]} 24. Kf3 {[%emt 0:00:34]} h5 {[%emt 0:00:31]} 25. Rae1 {[%emt 0:00:26]} h4 {[%emt 0:00:07]} 26. Rh7 {[%emt 0:02:00]} Rb8 {[%emt 0:00:54]} 27. Ree7 {[%emt 0:00:53]} Bxc3 {[%emt 0:00:31]} 28. bxc3 {[%emt 0:00:57]} 1-0

[Event "2nd Hersonissos Open 2018"]
[Site "Hersonissos"]
[Date "2018.06.18"]
[Round "2"]
[White "Angermuende, Dirk"]
[Black "Spirou, Gerasimos"]
[Result "1-0"]
[ECO "C44"]
[WhiteElo "1966"]
[BlackElo "1716"]
[Annotator "NA RC"]
[PlyCount "69"]
[EventDate "2018.06.16"]
[EventType "swiss"]
[EventCountry "GRE"]
[SourceTitle "playchess.com"]
[Source "ChessBase"]
[SourceQuality "1"]
[TimeControl "5400+30"]

{[%evp 8,56,48,60,87,-12,-3,-35,-49,-101,-91,-112,-47,-35,-34,-44,-54,-77,-41,-229,-91,-211,-95,-114,20,7,226,234,243,255,250,250,258,250,246,251,250,279,247,271,283,286,286,241,225,210,364,335,272,303,417]} 1. e4 {[%emt 0:00:00]} e5 {[%emt 0:10:49]} 2. Nf3 {[%emt 0:00:00]} Nc6 {[%emt 0:00:12]} 3. c3 {[%emt 0:00:00]} d5 {[%emt 0:03:41]} 4. Qa4 {[%emt 0:00:00]} dxe4 {[%emt 0:01:02]} (4... f6 $11) 5. Nxe5 $1 {[%emt 0:00:06]} Qd5 {[%emt 0:07:02]} 6. Bb5 {[%emt 0:05:34]} (6. Nxc6 $16 bxc6 7. Bc4) 6... Nge7 {[%emt 0:00:11] LiveBook: 19 Games} ({Of course not} 6... Qxe5 $6 7. Bxc6+ Kd8 8. Qxe4 $16) 7. Nxc6 {[%emt 0:14:21] C44: Ponziani Opening and Scotch Gambit} (7. f4 exf3 8. Nxf3 a6 9. Be2 Bf5 10. O-O O-O-O 11. d4 Qd7 12. b4 f6 13. Na3 Nd5 14. Bd2 Re8 15. Rfe1 Nb6 16. Qb3 Be6 {½-½ (31) Lu,S (2599)-Topalov,V (2813) Baku 2015}) 7... Nxc6 {[%emt 0:05:48]} 8. Qc4 $146 {[%emt 0:03:28]} ({Predecessor:} 8. O-O Bd7 9. Re1 O-O-O 10. Na3 Bd6 11. Nc4 Rhe8 12. Nxd6+ Qxd6 13. d4 exd3 14. Bf4 Qg6 {0-1 (65) Rubil,M (2298)-Sadilek,M (2194) Vienna 2017}) 8... Qxc4 {[%emt 0:04:40]} 9. Bxc4 {[%emt 0:00:06]} Bd7 {[%emt 0:00:10]} (9... Ne5 $17 10. Be2 Be6) 10. O-O {[%emt 0:00:42]} O-O-O {[%emt 0:00:07]} 11. Bxf7 {[%emt 0:00:42]} Ne5 {[%emt 0:00:24]} 12. Bb3 {[%emt 0:00:43]} Bb5 {[%emt 0:00:48]} 13. Rd1 $2 {[%emt 0:05:02] [#]} (13. d4 $11 {and White stays safe.} exd3 14. Bf4) 13... Bc5 {[%emt 0:00:53]} (13... Bd3 $1 $19 {and Black stays clearly on top.} 14. Na3 Bc5) 14. Be6+ {[%emt 0:01:49] [#]} (14. d4 $17 exd3 15. a4) 14... Kb8 {[%emt 0:00:13]} (14... Bd7 $1 $19 {[%cal Rd7e6]} 15. Bxd7+ Rxd7) 15. b4 {[%emt 0:01:08]} Be2 {[%emt 0:10:42]} (15... Bb6 $17 16. d4 exd3) 16. Re1 {[%emt 0:02:31]} Nd3 $2 {[%emt 0:00:47]} (16... Bxf2+ $1 $14 17. Kxf2 Bh5) 17. Rxe2 {[%emt 0:00:11]} Nxc1 {[%emt 0:00:21]} 18. Rxe4 {[%emt 0:00:37]} Bb6 {[%emt 0:00:46]} 19. d4 {[%emt 0:01:15]} Rhe8 {[%emt 0:02:03]} 20. Na3 {[%emt 0:00:33]} Rd6 {[%emt 0:04:25]} 21. Rxc1 {[%emt 0:00:41]} Rdxe6 {[%emt 0:00:17]} 22. Rxe6 {[%emt 0:00:09]} Rxe6 {[%emt 0:00:09]} 23. Kf1 {[%emt 0:00:10]} a5 {[%emt 0:00:14]} 24. b5 {[%emt 0:00:37]} c5 {[%emt 0:03:35]} 25. d5 {[%emt 0:01:09]} Re4 {[%emt 0:00:56]} 26. c4 {[%emt 0:00:59]} Bc7 {[%emt 0:02:51]} (26... a4 $142 27. Re1 Rd4) 27. g3 {[%emt 0:00:14]} Rd4 {[%emt 0:10:04]} 28. Ke2 {[%emt 0:01:16]} Be5 $18 {[%emt 0:06:20]} 29. f3 {[%emt 0:00:48]} g5 {[%emt 0:03:36]} 30. Rd1 {[%emt 0:00:43]} g4 {[%emt 0:00:16]} 31. Rxd4 {[%emt 0:00:28]} gxf3+ {[%emt 0:00:17]} 32. Kxf3 {[%emt 0:00:06]} Bxd4 {[%emt 0:03:03]} 33. Nc2 {[%emt 0:00:14]} Bg7 {[%emt 0:01:34]} 34. Ke4 {[%emt 0:00:34]} Kc7 {[%emt 0:00:13]} 35. Ne3 {[%emt 0:00:37]} 1-0